bitfinex/quotes_SOLUSD_20241220
["timestamp","ask_amount","ask_price","bid_price","bid_amount"]
[1734694973496,40.32961598,178.03,177.91,40.32961598]
[1734694973701,40.32961598,178.05,177.93,40.32961598]
[1734694973992,40.32961598,178.03,177.91,40.32961598]
[1734694974329,0.12549,178.0,177.89,40.32961598]
[1734694974469,40.32961598,178.01,177.89,40.32961598]
[1734694974667,40.32961598,178.01,177.91,40.32961598]
[1734694974873,40.32961598,178.01,177.89,40.32961598]
[1734694975080,40.32961598,178.09,177.96,40.32961598]
[1734694975389,40.32961598,178.19,178.06,40.32961598]
[1734694975696,14.0257,178.25,178.02,40.32961598]
[1734694975697,40.32961598,178.13,178.02,40.32961598]
[1734694975880,40.32961598,178.09,177.97,40.32961598]
[1734694976264,0.12549,178.06,177.95,40.32961598]
[1734694976478,40.32961598,178.09,177.99,40.32961598]
[1734694976673,40.32961598,178.11,178.01,40.32961598]
[1734694976895,40.32961598,178.13,178.03,40.32961598]
[1734694977092,7.62709899,178.15,177.92,42.99643494]
[1734694977300,7.62709899,178.15,178.05,40.32961598]
[1734694977469,40.32961598,178.16,178.03,40.32961598]
[1734694977470,40.32961598,178.14,178.03,40.32961598]
[1734694977793,40.32961598,178.06,177.96,40.32961598]
[1734694977996,40.32961598,178.04,177.94,40.32961598]
[1734694978212,40.32961598,177.97,177.8,10.8184]
[1734694978389,40.32961598,178.05,177.93,40.32961598]
[1734694978726,40.32961598,178.07,177.95,40.32961598]
[1734694978886,40.32961598,178.07,177.81,14.90288497]
[1734694978887,40.32961598,178.05,177.93,40.32961598]
[1734694979087,40.32961598,178.07,177.95,40.32961598]
[1734694979288,42.0922,178.18,177.93,40.32961598]
[1734694979289,40.32961598,178.05,177.93,40.32961598]
[1734694979484,40.32961598,178.05,177.95,40.32961598]
[1734694979800,40.32961598,178.01,177.89,40.32961598]
[1734694979993,40.32961598,177.91,177.81,40.32961598]
[1734694980196,40.32961598,177.91,177.79,40.32961598]
[1734694980391,40.32961598,177.91,177.81,40.32961598]
[1734694980588,40.32961598,177.91,177.79,40.32961598]
[1734694980809,40.32961598,177.89,177.77,40.32961598]
[1734694981111,40.32961598,177.83,177.71,40.32961598]
[1734694981295,40.32961598,177.83,177.71,41.17349051]
[1734694981500,40.32961598,177.81,177.69,41.45154258]
[1734694981994,40.32961598,177.83,177.71,40.32961598]
[1734694982183,40.32961598,177.94,177.82,40.32961598]
[1734694982384,40.32961598,178.0,177.88,40.32961598]
[1734694982584,40.32961598,178.04,177.94,40.32961598]
[1734694982811,40.32961598,178.04,177.83,0.84334957]
[1734694982812,52.502845,178.14,177.99,40.32961598]
[1734694983126,40.32961598,178.13,178.03,40.32961598]
[1734694983617,33.450062,178.22,177.87,14.0549]
[1734694983618,40.32961598,178.06,177.87,14.0549]
[1734694983800,40.32961598,178.06,177.95,40.32961598]
[1734694984109,40.32961598,178.04,177.93,40.32961598]
[1734694984312,40.32961598,178.02,177.89,40.32961598]
[1734694984516,40.32961598,177.96,177.83,40.32961598]
[1734694984725,40.32961598,177.87,177.76,40.32961598]
[1734694984891,40.32961598,177.91,177.8,40.32961598]
[1734694985087,44.88348295,177.88,177.77,44.88348295]
[1734694985402,44.88348295,177.86,177.75,44.88348295]
[1734694985612,44.88348295,177.9,177.77,44.88348295]
[1734694985813,44.88348295,177.94,177.83,44.88348295]
[1734694986134,44.88348295,177.9,177.79,44.88348295]
[1734694986295,30.0,177.9,177.75,44.88348295]
[1734694986496,30.0,177.99,177.7,0.84374321]
[1734694986795,8.18020945,178.08,177.73,0.12549]
[1734694986796,52.21940945,178.08,177.73,0.12549]
[1734694987004,37.0839,178.07,177.75,0.12549]
[1734694987204,7.0839,178.07,177.76,0.84306442]
[1734694987398,30.0,177.99,177.84,44.88348295]
[1734694987610,44.88348295,178.0,177.88,44.88348295]
[1734694987812,44.88348295,177.99,177.88,44.88348295]
[1734694988010,44.88348295,178.01,177.88,44.88348295]
[1734694988210,44.88348295,178.05,177.94,44.88348295]
[1734694988423,44.88348295,178.07,177.96,44.88348295]
[1734694988627,44.88348295,178.09,177.98,44.88348295]
[1734694988798,38.18020945,178.14,177.96,44.88348295]
[1734694989006,44.88348295,178.11,178.0,44.88348295]
[1734694989222,44.88348295,178.11,177.8,0.84287587]
[1734694989223,44.88348295,178.01,177.89,44.88348295]
[1734694989544,44.88348295,178.01,177.8,0.84287587]
[1734694989545,44.88348295,178.03,177.91,44.88348295]
[1734694989701,44.88348295,178.05,177.93,44.88348295]
[1734694989912,44.88348295,178.07,177.95,44.88348295]
[1734694990234,44.88348295,178.13,178.01,44.88348295]
[1734694990402,8.18020945,178.15,178.05,44.88348295]
[1734694990600,44.88348295,178.19,178.07,44.88348295]
[1734694990824,44.88348295,178.15,178.05,44.88348295]
[1734694991125,30.0,178.04,177.9,44.88348295]
[1734694991332,30.0,178.04,177.83,12.13726153]
[1734694991333,30.0,178.1,177.94,44.88348295]
[1734694991536,44.88348295,178.1,177.99,44.88348295]
[1734694991836,44.88348295,178.14,178.03,44.88348295]
[1734694992335,72.93498295,178.25,177.87,0.84255224]
[1734694992336,44.88348295,178.16,178.05,44.88348295]
[1734694992507,44.88348295,178.2,178.09,44.88348295]
[1734694992707,44.88348295,178.2,177.89,20.0]
[1734694992708,44.88348295,178.18,178.07,44.88348295]
[1734694993036,22.20710945,178.23,177.96,44.88348295]
[1734694993037,0.12549,178.08,177.96,44.88348295]
[1734694993249,44.88348295,178.11,177.98,44.88348295]
[1734694993549,44.88348295,178.15,178.04,44.88348295]
[1734694993728,44.88348295,178.15,177.92,0.12549]
[1734694993729,44.88348295,178.13,178.02,44.88348295]
[1734694994123,44.88348295,178.07,177.96,44.88348295]
[1734694994320,44.88348295,178.09,177.96,44.88348295]
[1734694994517,44.88348295,178.14,178.04,44.88348295]
[1734694994722,44.88348295,178.18,178.06,44.88348295]
[1734694994920,8.18020945,178.21,178.12,44.88348295]
[1734694995131,8.18020945,178.21,178.14,44.88348295]
[1734694995827,44.88348295,178.24,178.12,44.88348295]
[1734694996342,44.88348295,178.24,178.14,44.88348295]
[1734694996639,14.0217,178.3,178.14,44.88348295]
[1734694996640,44.88348295,178.26,178.14,44.88348295]
[1734694996872,44.88348295,178.24,178.12,44.88348295]
[1734694997047,44.88348295,178.26,178.14,44.88348295]
[1734694997215,44.88348295,178.26,178.16,44.88348295]
[1734694997416,11.6092,178.41,178.21,44.88348295]
[1734694997417,44.88348295,178.32,178.21,44.88348295]
[1734694997722,44.88348295,178.36,178.25,44.88348295]
[1734694998052,44.88348295,178.41,178.31,44.88348295]
[1734694998221,8.18020945,178.44,178.37,44.88348295]
[1734694998549,44.88348295,178.44,178.33,44.88348295]
[1734694998738,44.88348295,178.44,178.14,42.1009]
[1734694998739,44.88348295,178.4,178.29,44.88348295]
[1734694998944,44.88348295,178.38,178.27,44.88348295]
[1734694999120,44.88348295,178.4,178.31,44.88348295]
[1734694999417,30.0,178.41,178.27,44.88348295]
[1734694999622,44.88348295,178.34,178.23,44.88348295]
[1734695000452,44.88348295,178.26,178.17,44.88348295]
[1734695000615,44.88348295,178.28,178.17,44.88348295]
[1734695000931,70.0556,178.43,178.07,0.8413377]
[1734695000932,44.88348295,178.26,178.15,44.88348295]
[1734695001134,99.02744386,178.43,178.15,44.88348295]
[1734695001135,44.88348295,178.24,178.15,44.88348295]
[1734695001448,44.88348295,178.22,178.11,44.88348295]
[1734695001653,44.88348295,178.22,178.07,0.8413377]
[1734695001654,44.88348295,178.16,178.07,44.88348295]
[1734695001951,44.88348295,178.2,178.09,44.88348295]
[1734695002239,44.88348295,178.24,178.13,44.88348295]
[1734695002560,44.88348295,178.32,178.21,44.88348295]
[1734695002919,44.88348295,178.3,178.21,44.88348295]
[1734695003119,44.88348295,178.28,178.17,44.88348295]
[1734695003522,44.88348295,178.26,178.15,44.88348295]
[1734695003718,45.00897295,178.24,178.13,44.88348295]
[1734695003929,44.88348295,178.16,178.05,44.88348295]
[1734695004130,0.12549,178.14,177.99,44.88348295]
[1734695004332,44.88348295,178.06,177.94,11.3952]
[1734695004525,44.88348295,178.1,177.99,44.88348295]
[1734695004720,44.88348295,178.08,177.97,44.88348295]
[1734695005057,0.84145715,178.07,177.98,40.26417506]
[1734695005258,0.84145715,178.08,177.98,40.26417506]
[1734695005445,40.26417506,177.99,177.83,0.84269178]
[1734695005756,40.26417506,177.89,177.77,40.26417506]
[1734695005919,0.84145715,177.98,177.75,40.26417506]
[1734695005920,40.26417506,177.87,177.75,40.26417506]
[1734695006323,40.26417506,177.91,177.79,40.26417506]
[1734695006547,40.26417506,177.89,177.77,40.26417506]
[1734695006751,40.26417506,177.91,177.8,40.26417506]
[1734695006922,0.84145715,177.9,177.78,40.26417506]
[1734695007126,40.26417506,177.95,177.83,40.26417506]
[1734695007349,0.84145715,177.94,177.83,40.26417506]
[1734695007652,0.84145715,177.93,177.85,40.26417506]
[1734695007953,0.12549,177.86,177.72,40.26417506]
[1734695008122,0.12549,177.86,177.7,10.612]
[1734695008123,40.26417506,177.81,177.7,40.26417506]
[1734695008330,0.84145715,177.86,177.76,40.26417506]
[1734695008542,40.26417506,177.89,177.78,40.26417506]
[1734695008749,0.84145715,177.88,177.78,40.26417506]
[1734695009059,40.26417506,177.87,177.76,40.26417506]
[1734695009245,0.84145715,177.86,177.74,40.26417506]
[1734695009950,0.84145715,177.86,177.76,40.26417506]
[1734695010244,0.84145715,177.86,177.72,40.26417506]
[1734695010457,40.26417506,177.87,177.76,40.26417506]
[1734695010664,0.84145715,177.96,177.78,40.26417506]
[1734695010949,40.26417506,177.92,177.8,40.26417506]
[1734695011256,0.84145715,177.96,177.86,40.26417506]
[1734695011635,0.84145715,177.98,177.88,40.26417506]
[1734695011836,40.26417506,177.9,177.77,40.26417506]
[1734695012034,40.26417506,177.83,177.73,40.26417506]
[1734695012229,40.26417506,177.79,177.69,1.1219266]
[1734695012529,40.26417506,177.77,177.69,1.1219266]
[1734695012746,0.12549,177.75,177.69,1.1219266]
[1734695013049,40.26417506,177.7,177.69,1.1219266]
[1734695013363,20.0,177.67,177.51,40.26417506]
[1734695013535,40.26417506,177.6,177.49,40.26417506]
[1734695013734,40.26417506,177.58,177.47,40.26417506]
[1734695013951,40.26417506,177.62,177.51,40.26417506]
[1734695014246,0.84145715,177.61,177.51,40.26417506]
[1734695014764,40.26417506,177.58,177.47,40.26417506]
[1734695015057,0.84145715,177.57,177.47,40.26417506]
[1734695015258,0.84145715,177.56,177.47,40.26417506]
[1734695015629,41.10563221,177.56,177.45,40.26417506]
[1734695015827,41.10563221,177.56,177.39,11.5912]
[1734695015828,40.26417506,177.62,177.49,40.26417506]
[1734695016129,40.26417506,177.58,177.47,40.26417506]
[1734695016350,0.84145715,177.57,177.47,40.26417506]
[1734695016529,40.26417506,177.56,177.47,40.26417506]
[1734695016734,40.26417506,177.56,177.28,7.051]
[1734695016735,40.26417506,177.48,177.34,0.84489987]
[1734695016951,20.0,177.56,177.35,41.60550886]
[1734695016952,40.26417506,177.45,177.35,41.60550886]
[1734695017151,40.26417506,177.47,177.37,40.26417506]
[1734695017461,40.26417506,177.43,177.35,1.3413338]
[1734695017639,0.84145715,177.52,177.41,40.26417506]
[1734695017961,40.26417506,177.5,177.37,40.26417506]
[1734695018149,40.26417506,177.52,177.39,40.26417506]
[1734695018348,40.26417506,177.56,177.45,40.26417506]
[1734695018548,41.10563221,177.55,177.45,40.26417506]
[1734695018755,0.12549,177.54,177.39,40.26417506]
[1734695019067,40.26417506,177.43,177.35,1.3413338]
[1734695019230,0.84145715,177.42,177.35,1.3413338]
[1734695019657,0.84145715,177.44,177.35,1.3413338]
[1734695019838,40.26417506,177.41,177.35,1.3413338]
[1734695020052,0.84145715,177.4,177.35,1.3413338]
[1734695020358,40.26417506,177.37,177.35,1.3413338]
[1734695020574,0.84145715,177.36,177.35,1.3413338]
[1734695021275,0.84145715,177.36,177.12,0.84592061]
[1734695021276,40.26417506,177.27,177.21,0.5647346]
[1734695021561,40.26417506,177.4,177.21,0.5647346]
[1734695021562,40.26417506,177.25,177.21,0.5647346]
[1734695021774,40.26417506,177.23,177.21,0.5647346]
[1734695022059,40.26417506,177.1,176.98,54.38997506]
[1734695022363,0.84145715,177.09,176.98,40.26417506]
[1734695022654,40.26417506,177.14,177.02,40.26417506]
[1734695022867,0.84145715,177.18,177.08,40.26417506]
[1734695023161,0.84145715,177.26,177.14,40.26417506]
[1734695023364,40.26417506,177.29,177.18,40.26417506]
[1734695023660,0.84145715,177.28,177.18,40.26417506]
[1734695023971,40.26417506,177.35,177.22,40.26417506]
[1734695024261,0.84145715,177.34,177.27,40.26417506]
[1734695024469,0.84145715,177.34,177.16,14.1115]
[1734695024470,40.26417506,177.31,177.21,40.26417506]
[1734695024645,0.84145715,177.36,177.26,20.0]
[1734695024835,0.84145715,177.41,177.25,40.26417506]
[1734695025174,37.2131,177.48,177.25,40.26417506]
[1734695025175,40.26417506,177.4,177.28,20.0]
[1734695025345,0.84145715,177.39,177.27,41.11001095]
[1734695025674,28.23072422,177.57,177.19,20.0]
[1734695025675,40.26417506,177.44,177.33,40.38966506]
[1734695025836,0.84145715,177.5,177.42,20.0]
[1734695026034,40.26417506,177.48,177.37,40.26417506]
[1734695026347,40.26417506,177.44,177.33,40.26417506]
[1734695026548,40.26417506,177.44,177.31,0.84551068]
[1734695026549,0.84145715,177.43,177.32,20.0]
[1734695026755,0.84145715,177.54,177.33,0.12549]
[1734695026950,0.84145715,177.54,177.35,0.12549]
[1734695027260,0.84145715,177.54,177.34,0.84526978]
[1734695027465,44.71720748,177.48,177.38,20.0]
[1734695027635,44.71720748,177.52,177.41,44.71720748]
[1734695027836,0.84145715,177.51,177.41,44.71720748]
[1734695028035,0.84145715,177.51,177.42,0.8452261]
[1734695028236,44.71720748,177.54,177.46,20.0]
[1734695028468,125.0,177.54,177.46,20.0]
[1734695028655,125.0,177.54,177.5,20.0]
[1734695028831,125.0,177.54,177.53,64.71720748]
[1734695029371,125.0,177.54,177.51,44.71720748]
[1734695029563,125.0,177.54,177.5,20.0]
[1734695029942,125.0,177.54,177.51,44.71720748]
[1734695030135,125.0,177.54,177.47,45.56199977]
[1734695030339,125.0,177.54,177.5,20.0]
[1734695030548,125.0,177.54,177.47,45.56199977]
[1734695030784,44.71720748,177.52,177.42,0.84489654]
[1734695031072,44.71720748,177.46,177.38,22.566289]
[1734695031287,44.71720748,177.48,177.38,22.566289]
[1734695031493,0.84145715,177.53,177.43,44.71720748]
[1734695031666,169.71720748,177.54,177.44,0.84498835]
[1734695031862,169.71720748,177.54,177.45,44.71720748]
[1734695032176,125.0,177.54,177.51,44.71720748]
[1734695032484,125.0,177.54,177.53,20.0]
[1734695032881,125.0,177.54,177.53,64.71720748]
[1734695033175,125.0,177.54,177.53,20.0]
[1734695033500,169.71720748,177.54,177.48,20.0]
[1734695033793,30.0,177.87,177.56,20.0]
[1734695033967,44.71720748,177.85,177.76,20.0]
[1734695034161,44.71720748,177.87,177.76,20.0]
[1734695034400,44.71720748,177.85,177.75,44.71720748]
[1734695034593,0.84145715,177.84,177.73,44.71720748]
[1734695034898,0.84145715,177.84,177.74,20.0]
[1734695035268,44.71720748,177.81,177.69,44.71720748]
[1734695035475,44.71720748,177.81,177.72,20.0]
[1734695035683,0.84145715,177.8,177.72,20.0]
[1734695035892,44.71720748,177.83,177.73,45.56094331]
[1734695036195,0.84145715,177.82,177.73,45.56086697]
[1734695036492,0.84145715,177.82,177.66,44.71720748]
[1734695036493,44.71720748,177.88,177.8,20.0]
[1734695036695,44.71720748,177.92,177.81,45.56052399]
[1734695036866,0.84145715,177.91,177.81,45.56052399]
[1734695037066,44.71720748,177.88,177.79,44.71720748]
[1734695037383,44.71720748,177.88,177.78,44.71720748]
[1734695037587,0.84145715,177.87,177.78,44.71720748]
[1734695037903,0.84145715,177.87,177.61,11.3335]
[1734695037904,44.71720748,177.79,177.61,11.3335]
[1734695038076,44.71720748,177.7,177.59,0.84404355]
[1734695038279,44.71720748,177.7,177.53,14.0821]
[1734695038280,0.84145715,177.69,177.48,14.0855]
[1734695038600,0.84145715,177.69,177.46,44.71720748]
[1734695038601,44.71720748,177.55,177.46,44.71720748]
[1734695038769,44.71720748,177.56,177.47,0.84502464]
[1734695039102,0.84145715,177.55,177.46,44.71720748]
[1734695039294,0.84145715,177.73,177.54,44.71720748]
[1734695039498,44.71720748,177.7,177.57,44.71720748]
[1734695039668,0.84145715,177.73,177.63,44.71720748]
[1734695039977,44.71720748,177.71,177.56,14.0791]
[1734695040178,44.71720748,177.75,177.63,44.71720748]
[1734695040375,0.84145715,177.81,177.7,20.0]
[1734695040587,8.7804482,177.93,177.65,44.71720748]
[1734695040588,44.71720748,177.76,177.65,44.71720748]
[1734695040898,44.71720748,177.78,177.67,44.71720748]
[1734695041097,40.4103121,177.78,177.67,41.25418722]
[1734695041407,0.84145715,177.77,177.67,40.4103121]
[1734695041576,40.4103121,177.76,177.65,40.4103121]
[1734695041774,40.4103121,177.72,177.61,40.4103121]
[1734695041982,40.4103121,177.64,177.53,41.25459817]
[1734695042174,40.4103121,177.62,177.5,40.4103121]
[1734695042374,40.4103121,177.62,177.52,40.4103121]
[1734695042684,0.84145715,177.72,177.51,0.84462608]
[1734695042685,40.4103121,177.68,177.56,40.4103121]
[1734695042887,12.107,177.79,177.52,40.4103121]
[1734695042888,40.4103121,177.61,177.52,40.4103121]
[1734695043208,40.4103121,177.54,177.38,40.4103121]
[1734695043404,40.4103121,177.5,177.4,40.4103121]
[1734695043707,40.4103121,177.52,177.42,40.4103121]
[1734695044008,0.84145715,177.51,177.42,40.4103121]
[1734695044171,0.84145715,177.51,177.4,40.4103121]
[1734695044374,40.4103121,177.44,177.33,40.4103121]
[1734695044567,0.84145715,177.51,177.43,40.4103121]
[1734695044770,0.84145715,177.61,177.47,40.4103121]
[1734695044973,0.84145715,177.68,177.48,0.8447899]
[1734695045176,0.84145715,177.68,177.33,316.00120679]
[1734695045177,0.84145715,177.68,177.45,12.1699]
[1734695045404,0.84145715,177.72,177.47,0.12549]
[1734695045585,30.0,177.71,177.48,0.84427905]
[1734695045777,30.0,177.66,177.38,0.84474443]
[1734695046100,40.4103121,177.51,177.4,40.4103121]
[1734695046282,40.4103121,177.49,177.38,40.4103121]
[1734695046480,0.84145715,177.48,177.4,40.4103121]
[1734695046798,41.25176925,177.57,177.46,40.4103121]
[1734695046995,0.84145715,177.56,177.4,0.84531562]
[1734695047171,0.84145715,177.56,177.34,54.4612]
[1734695047172,0.84145715,177.6,177.35,0.84508907]
[1734695047375,0.84145715,177.6,177.36,0.12549]
[1734695047678,0.84145715,177.63,177.38,0.12549]
[1734695047890,0.84145715,177.63,177.39,0.84478356]
[1734695048105,40.4103121,177.54,177.44,40.4103121]
[1734695048402,40.4103121,177.52,177.4,40.4103121]
[1734695048606,40.4103121,177.48,177.38,40.4103121]
[1734695048807,40.4103121,177.5,177.38,40.4103121]
[1734695048981,70.4103121,177.6,177.34,12.1699]
[1734695048982,0.84145715,177.49,177.41,40.4103121]
[1734695049179,40.4103121,177.54,177.43,40.4103121]
[1734695049384,40.4103121,177.56,177.43,40.4103121]
[1734695049601,40.4103121,177.56,177.45,40.4103121]
[1734695049803,41.25176925,177.63,177.52,40.4103121]
[1734695049981,40.4103121,177.65,177.55,60.4103121]
[1734695050188,40.4103121,177.58,177.47,40.4103121]
[1734695050484,40.4103121,177.49,177.37,40.4103121]
[1734695050681,40.4103121,177.46,177.37,40.4103121]
[1734695050899,5.0,177.45,177.37,40.4103121]
[1734695051103,5.0,177.45,177.39,40.4103121]
[1734695051407,0.12549,177.4,177.26,40.4103121]
[1734695051592,40.4103121,177.37,177.26,40.4103121]
[1734695051791,0.84145715,177.36,177.26,40.4103121]
[1734695051983,0.84145715,177.36,177.31,40.4103121]
[1734695052181,40.4103121,177.39,177.29,40.4103121]
[1734695052404,40.4103121,177.37,177.27,40.4103121]
[1734695052623,0.84145715,177.36,177.18,0.8458202]
[1734695052925,40.4103121,177.39,177.27,40.4103121]
[1734695053223,5.0,177.45,177.37,40.4103121]
[1734695053509,5.0,177.45,177.44,40.4103121]
[1734695053510,0.4832,177.45,177.44,40.4103121]
[1734695053804,0.84145715,177.61,177.45,23.776884]
[1734695054004,40.4103121,177.58,177.48,40.4103121]
[1734695054179,40.4103121,177.62,177.5,40.4103121]
[1734695054376,40.4103121,177.62,177.47,14.0868]
[1734695054377,0.84145715,177.61,177.52,40.4103121]
[1734695054581,0.84145715,177.61,177.53,20.0]
[1734695054993,40.4103121,177.62,177.55,20.0]
[1734695055193,40.4103121,177.6,177.5,40.4103121]
[1734695055410,40.4103121,177.54,177.42,0.84481719]
[1734695055702,0.84145715,177.53,177.35,40.4103121]
[1734695055884,40.4103121,177.47,177.35,40.4103121]
[1734695056086,41.25176925,177.53,177.41,40.4103121]
[1734695056289,40.4103121,177.51,177.4,40.4103121]
[1734695056508,40.4103121,177.49,177.38,40.4103121]
[1734695056714,40.4103121,177.51,177.4,40.4103121]
[1734695056924,40.4103121,177.53,177.42,40.4103121]
[1734695057095,40.4103121,177.55,177.44,40.4103121]
[1734695057294,30.0,177.8,177.54,40.4103121]
[1734695057498,40.4103121,177.73,177.61,40.4103121]
[1734695057703,0.84145715,177.72,177.63,40.4103121]
[1734695057909,0.84145715,177.74,177.65,40.4103121]
[1734695058118,40.4103121,177.81,177.7,20.0]
[1734695058307,0.84145715,177.81,177.78,20.0]
[1734695058609,8.98916997,177.89,177.79,41.25390575]
[1734695058923,41.5428603,177.93,177.79,41.25390575]
[1734695058924,0.84145715,177.92,177.87,40.4103121]
[1734695059212,1.1325482,177.93,177.86,40.4103121]
[1734695059600,40.4103121,177.89,177.78,40.4103121]
[1734695059802,0.84145715,177.88,177.78,40.4103121]
[1734695060317,42.38431745,177.93,177.82,40.4103121]
[1734695060636,40.4103121,177.89,177.78,40.4103121]
[1734695060793,0.84145715,177.92,177.86,40.4103121]
[1734695061128,1.1325482,177.93,177.82,44.49498866]
[1734695061329,0.84145715,177.92,177.82,44.49498866]
[1734695061499,1.1325482,177.93,177.88,44.49498866]
[1734695061684,1.1325482,177.93,177.9,44.49498866]
[1734695061886,1.1325482,177.93,177.84,44.49498866]
[1734695061887,1.1325482,177.93,177.92,68.27187266]
[1734695062090,0.84145715,178.13,178.0,20.0]
[1734695062328,45.33644581,178.19,178.08,44.49498866]
[1734695062617,0.84145715,178.18,178.08,44.49498866]
[1734695062818,44.49498866,178.17,178.06,44.49498866]
[1734695062994,44.49498866,178.17,177.95,20.0]
[1734695062995,44.49498866,178.13,178.02,44.49498866]
[1734695063188,30.0,178.18,177.98,44.49498866]
[1734695063189,44.49498866,178.09,177.98,44.49498866]
[1734695063489,44.49498866,178.03,177.92,44.49498866]
[1734695063693,44.49498866,177.98,177.86,44.49498866]
[1734695063896,0.12549,177.99,177.8,12.0712]
[1734695063897,44.49498866,177.94,177.84,44.49498866]
[1734695064113,0.84145715,177.93,177.84,44.49498866]
[1734695064293,44.49498866,177.91,177.8,44.49498866]
[1734695064613,44.49498866,177.83,177.72,44.49498866]
[1734695064818,0.12549,177.89,177.7,0.84375278]
[1734695064819,44.49498866,177.79,177.7,0.84375278]
[1734695065120,44.49498866,177.77,177.66,44.49498866]
[1734695065316,44.49498866,177.75,177.64,44.49498866]
[1734695065513,30.0,177.82,177.6,0.84388988]
[1734695065514,44.49498866,177.73,177.62,44.49498866]
[1734695065825,0.84145715,177.72,177.62,44.49498866]
[1734695066018,0.84145715,177.72,177.58,44.49498866]
[1734695066019,44.49498866,177.69,177.58,44.49498866]
[1734695066207,44.49498866,177.69,177.51,21.3964]
[1734695066208,44.49498866,177.67,177.56,44.49498866]
[1734695066516,0.84145715,177.66,177.56,44.49498866]
[1734695066904,0.84145715,177.66,177.58,44.49498866]
[1734695067210,44.49498866,177.65,177.54,44.49498866]
[1734695067411,44.49498866,177.69,177.58,44.49498866]
[1734695067593,44.49498866,177.69,177.51,14.0829]
[1734695067594,0.84145715,177.74,177.64,44.49498866]
[1734695067916,30.0,177.63,177.36,44.49498866]
[1734695068223,44.49498866,177.47,177.36,44.49498866]
[1734695068423,44.49498866,177.47,177.34,44.49498866]
[1734695068722,1.05680621,177.46,177.23,14.53279452]
[1734695069024,1.0567015,177.46,177.37,44.49498866]
[1734695069213,44.49498866,177.49,177.38,0.42769517]
[1734695069417,1.05667616,177.56,177.47,44.49498866]
[1734695069604,45.55092288,177.64,177.53,44.49498866]
[1734695069806,44.49498866,177.54,177.31,12.864]
[1734695070126,44.49498866,177.66,177.41,0.12549]
[1734695070127,1.05648227,177.59,177.41,0.12549]
[1734695070425,1.05586473,177.65,177.42,0.42607231]
[1734695070629,14.0734,177.64,177.42,0.42607231]
[1734695070830,44.49498866,177.54,177.43,44.49498866]
[1734695071015,14.0734,177.64,177.37,42.2844]
[1734695071016,44.49498866,177.52,177.41,44.49498866]
[1734695071198,44.49498866,177.5,177.39,44.49498866]
[1734695071397,44.49498866,177.48,177.37,44.49498866]
[1734695071611,44.49498866,177.48,177.33,14.0979]
[1734695071612,44.49498866,177.44,177.33,44.49498866]
[1734695071816,44.49498866,177.34,177.21,1.1325482]
[1734695072031,44.49498866,177.39,177.21,1.1325482]
[1734695072032,44.49498866,177.29,177.21,1.1325482]
[1734695072228,44.49498866,177.23,177.21,1.1325482]
[1734695072397,1.18365322,177.22,177.21,1.1325482]
[1734695072600,1.05816322,177.22,177.21,1.1325482]
[1734695072829,45.55315188,177.22,177.21,4.82e-05]
[1734695073032,90.04814054,177.22,177.03,44.49498866]
[1734695073207,44.49498866,177.14,177.03,44.49498866]
[1734695073407,44.49498866,177.14,177.02,1.16730608]
[1734695073408,44.49498866,177.08,177.02,0.7357767]
[1734695073603,44.49498866,177.04,177.02,0.7357767]
[1734695073797,45.55434844,177.03,177.02,0.7357767]
[1734695074307,44.49498866,176.91,176.86,22.621593]
[1734695074499,1.05935978,177.03,176.84,44.49498866]
[1734695074500,44.49498866,176.95,176.84,44.49498866]
[1734695074699,44.49498866,176.85,176.72,15.3222031]
[1734695074932,45.55477392,176.94,176.72,1.1757031]
[1734695074933,44.49498866,176.76,176.72,1.1757031]
[1734695075116,44.49498866,176.74,176.72,1.1757031]
[1734695075297,1.06097336,176.73,176.72,1.1757031]
[1734695075805,1.18646336,176.73,176.72,1.1757031]
[1734695076223,0.12549,176.72,176.56,0.17999004]
[1734695076414,44.49498866,176.58,176.56,0.17999004]
[1734695076804,1.06193098,176.57,176.56,0.17999004]
[1734695077132,0.12549,176.56,176.37,39.37477197]
[1734695077326,38.93608846,176.47,176.37,0.43868351]
[1734695077516,1.06255544,176.46,176.39,38.93608846]
[1734695077720,30.0,176.53,176.41,40.11179156]
[1734695077721,1.06278765,176.5,176.41,40.11179156]
[1734695077913,38.93608846,176.57,176.47,38.93608846]
[1734695078103,38.93608846,176.61,176.49,38.93608846]
[1734695078298,38.93608846,176.61,176.41,1.61413915]
[1734695078299,38.93608846,176.61,176.51,38.93608846]
[1734695078527,1.06196315,176.66,176.47,38.93608846]
[1734695078528,7.54148846,176.57,176.47,38.93608846]
[1734695078722,1.06092785,176.69,176.47,0.43619854]
[1734695079030,38.93608846,176.72,176.61,38.93608846]
[1734695079204,38.93608846,176.64,176.52,0.43709211]
[1734695079408,1.06173701,176.63,176.43,0.43709211]
[1734695079634,38.93608846,176.61,176.5,38.93608846]
[1734695079930,38.93608846,176.67,176.56,38.93608846]